fUST/lending_fUST_20240120
["ID","MTS","AMOUNT","RATE_DAILY","PERIOD"]
[312295445,1705758642995,-588.74555064,0.00032876,7]
[312295447,1705758643005,-500.0,0.00032876,7]
[312295449,1705758643014,-500.0,0.00032876,7]
[312295451,1705758643023,-500.0,0.00032876,7]
[312295452,1705758643033,-524.153582,0.00032876,7]
[312295454,1705758643042,-500.0,0.00032876,7]
[312295456,1705758643052,-209.31359224,0.00032876,7]
[312295458,1705758643063,-500.0,0.00032876,7]
[312295460,1705758643072,-283.41292088,0.00032876,7]
[312295462,1705758643082,-500.0,0.00032876,7]
[312295464,1705758643092,-500.0,0.00032876,7]
[312295466,1705758643105,-500.0,0.00032876,7]
[312295468,1705758643114,-600.0,0.00032876,7]
[312295469,1705758643122,-500.0,0.00032876,7]
[312295471,1705758643131,-397.98038345,0.00032876,7]
[312295473,1705758643141,-500.0,0.00032876,7]
[312295475,1705758643150,-483.43665766,0.00032876,7]
[312295476,1705758643160,-500.0,0.00032876,7]
[312295477,1705758643169,-500.0,0.00032876,7]
[312295478,1705758643181,-500.0,0.00032876,7]
[312295479,1705758643193,-500.0,0.00032876,7]
[312295480,1705758643318,-286.31061386,0.00032876,7]
[312295481,1705758643329,-500.0,0.00032876,7]
[312295482,1705758643338,-594.18426278,0.00032876,7]
[312295483,1705758643347,-457.77015321,0.00032876,7]
[312295484,1705758643358,-500.0,0.00032876,7]
[312295485,1705758643367,-500.0,0.00032876,7]
[312295486,1705758643377,-606.52729129,0.00032876,7]
[312295487,1705758643386,-523.00048345,0.00032876,7]
[312295488,1705758643395,-500.0,0.00032876,7]
[312295489,1705758643405,-303.93028529,0.00032876,7]
[312295490,1705758643414,-500.0,0.00032876,7]
[312295491,1705758643423,-500.0,0.00032876,7]
[312295492,1705758643433,-217.10009996,0.00032876,7]
[312295493,1705758643442,-156.52047528,0.00032876,7]
[312295494,1705758643451,-500.0,0.00032876,7]
[312295495,1705758643461,-500.0,0.00032876,7]
[312295496,1705758643470,-500.0,0.00032876,7]
[312295497,1705758643479,-500.0,0.00032876,7]
[312295498,1705758643488,-250.0,0.00032876,7]
[312295499,1705758643498,-187.17462113,0.00032876,7]
[312295500,1705758643508,-228.88273637,0.00032876,7]
[312295501,1705758643517,-208.42196376,0.00032876,7]
[312295502,1705758643526,-410.18196533,0.00032876,7]
[312295503,1705758643535,-170.1137859,0.00032877,2]
[312295504,1705758643545,-3456.2788141,0.00033,4]
[312295505,1705758643554,-500.0,0.00033,5]
[312295506,1705758643565,-154.69061876,0.00033,4]
[312295507,1705758643576,-1000.0,0.00033,33]
[312295508,1705758643584,-156.0,0.00033,2]
[312295509,1705758643593,-283.0,0.00033,2]
[312295510,1705758643602,-210.167992,0.0003317,2]
[312295511,1705758643611,-200.0,0.00033373,15]
[312295512,1705758643620,-200.0,0.00033373,15]
[312295513,1705758643629,-200.0,0.00033373,15]
[312295514,1705758643638,-200.0,0.00033373,15]
[312295515,1705758643648,-200.0,0.00033373,15]
[312295516,1705758643657,-200.0,0.00033373,15]
[312295517,1705758643666,-200.0,0.00033373,15]
[312295518,1705758643675,-200.0,0.00033373,15]
[312295519,1705758643685,-200.0,0.00033373,15]
[312295520,1705758643694,-308.0,0.00033373,15]
[312295521,1705758643703,-44999.999999,0.000335,8]
[312295522,1705758643713,-1061.909087,0.000335,2]
[312295523,1705758643722,-1061.909087,0.000335,2]
[312295524,1705758643731,-6406.763838,0.000335,2]
[312295525,1705758643740,-6406.763838,0.000335,2]
[312295526,1705758643750,-10990.39266955,0.00034,2]
[312295527,1705758643759,-1000.0,0.00034,34]
[312295528,1705758643768,-171.79662836,0.00034,7]
[312295529,1705758643778,-210.167992,0.00034051,2]
[312295530,1705758643788,-3255.98927649,0.00034244,2]
[312295531,1705758643941,-1744.01072351,0.00034244,2]
[312295532,1705758643951,-151.0,0.00034244,2]
[312295533,1705758643960,-151.0,0.00034244,2]
[312295534,1705758643970,-500.0,0.00034246,7]
[312295535,1705758643979,-151.0,0.00034508,2]
[312295536,1705758643989,-156.0,0.00034521,2]
[312295537,1705758643998,-7349.83879937,0.0003468,2]
[312295538,1705758644009,-5084.08906668,0.0003468,2]
[312295539,1705758644024,-1467.19342675,0.0003468,2]
[312295540,1705758644239,-3959.75893178,0.00019807,2]
[312295541,1705758644263,-2435.13655299,0.00019807,2]
[312295542,1705758644276,-4163.76275419,0.00019807,2]
[312295543,1705758644287,-980.91267131,0.00019807,2]
[312295659,1705759626099,-175.996738,0.0001633,2]
[312295660,1705759626119,-154.73694719,0.00016486,2]
[312295661,1705759626139,-455.5179916,0.00016486,2]
[312295662,1705759640104,-154.73694719,0.00016485,3]
[312295663,1705759640126,-1438.69728082,0.00016485,2]
[312295664,1705759640147,-318.58721487,0.00016486,2]
[312295665,1705759690374,-154.73694719,0.00016013,3]
[312295666,1705759703187,0.26305281,0.00016013,3]
[312295667,1705759756102,-154.47389438,0.00016013,3]
[312295668,1705759771207,147.64761031,0.00016013,3]
[312295691,1705759832299,-7.08933688,0.00016013,3]
[312295692,1705759832308,-2001.92927764,0.00016497,2]
[312295694,1705759832317,-150.70264872,0.000165,2]
[312295698,1705759832355,-121.5599486,0.000165,2]
[312295700,1705759832364,-979.83497316,0.00017235,2]
[312295702,1705759832374,-470.52459336,0.00017792,2]
[312295705,1705759832384,-1742.22654493,0.00017792,2]
[312295709,1705759832395,-360.33948368,0.00017792,2]
[312295712,1705759832404,-9.28570442,0.00017792,2]
[312295846,1705759840025,-5181.4298309,0.00016496,2]
[312295847,1705759840034,-1775.64634315,0.00017792,2]
[312295848,1705759840045,-288.13121283,0.00017792,2]
[312295849,1705759840054,-848.36711562,0.00017792,2]
[312295850,1705759840063,-154.87609912,0.00017792,2]
[312295851,1705759840072,-229.83933221,0.00017793,2]
[312295852,1705759840081,-9185.80844407,0.00017794,2]
[312295853,1705759840092,-15714.19155593,0.00017794,2]
[312295854,1705759840101,-200.0,0.00018136,2]
[312295855,1705759840110,-336.88204683,0.000189,2]
[312295856,1705759840119,-1581.76828075,0.00019,2]
[312295857,1705759840128,-170.08034,0.00019178,2]
[312295858,1705759840137,-170.091916,0.00019178,2]
[312295859,1705759840146,-170.086127,0.00019178,2]
[312295860,1705759840154,-1114.14548175,0.000195,2]
[312295861,1705759840163,-824.03065617,0.000197,2]
[312295862,1705759840172,-564.03409177,0.00019807,2]
[312295863,1705759840181,-280.0,0.00019949,2]
[312295864,1705759840190,-156.71629179,0.0002,2]
[312295865,1705759840200,-1197.48170656,0.0002,2]
[312295866,1705759840210,-154.73694719,0.0002,2]
[312295868,1705759840219,-154.73694719,0.0002,2]
[312295869,1705759840228,-678.35754423,0.0002,2]
[312295871,1705759840237,-5747.98,0.0002099,3]
[312295873,1705759840246,-8314.93,0.0002099,3]
[312295875,1705759840255,-6929.11,0.0002099,3]
[312295877,1705759840264,-5774.25,0.0002099,3]
[312295879,1705759840273,-22660.14150878,0.00021,2]
[312295881,1705759840282,-14217.0050238,0.00021,2]
[312295883,1705759840291,-9857.00979023,0.00021,2]
[312295885,1705759840300,-194.2806405,0.00021,2]
[312295887,1705759840309,-1764.32790583,0.00021,2]
[312295889,1705759840318,-327.38324213,0.00021,2]
[312295891,1705759840327,-166.666666,0.00021918,2]
[312295893,1705759840336,-391.0,0.00021944,7]
[312295896,1705759840345,-293.34385947,0.00022,4]
[312295898,1705759840353,-3966.85623058,0.00022,2]
[312295899,1705759840365,-425.80364021,0.00022,2]
[312295901,1705759840374,-10283.28004935,0.00022221,2]
[312295903,1705759840383,-166.666666,0.00022431,2]
[312295905,1705759840392,-166.666666,0.00022944,2]
[312295907,1705759840401,-1570.89243892,0.00023,2]
[312295909,1705759840410,-166.666666,0.00023456,2]
[312295911,1705759840419,-336.88204683,0.000239,2]
[312295913,1705759840429,-166.666666,0.00023969,2]
[312295915,1705759840438,-200.0,0.00024139,7]
[312295917,1705759840446,-348.0,0.00024139,7]
[312295919,1705759840456,-166.666666,0.00024482,2]
[312295921,1705759840465,-175.996738,0.00024496,2]
[312295923,1705759840474,-13941.95130771,0.00024998,2]
[312295925,1705759840483,-11225.66871003,0.00024998,2]
[312295927,1705759840492,-409.25937901,0.00025,2]
[312295929,1705759840501,-4721.06450288,0.00025,2]
[312295932,1705759840511,-1045.90652664,0.00025,2]
[312295933,1705759840521,-200.0,0.00026552,15]
[312295936,1705759840531,-200.0,0.00026552,15]
[312295937,1705759840543,-368.0,0.00026552,15]
[312295939,1705759840552,-351.14579978,0.000274,2]
[312295941,1705759840562,-3216.27669923,0.000275,2]
[312295943,1705759840571,-4117.14427366,0.00028,2]
[312295945,1705759840580,-290.16476431,0.00028,2]
[312295947,1705759840590,-4012.5594856,0.00028195,2]
[312295949,1705759840599,-561.46174088,0.00028199,2]
[312295951,1705759840608,-300.0,0.000282,2]
[312295953,1705759840619,-500.0,0.00028562,2]
[312295955,1705759840627,-470.31753825,0.00028562,2]
[312295957,1705759840636,-473.02915832,0.00028562,2]
[312295959,1705759840646,-500.0,0.00028562,2]
[312295961,1705759840655,-561.33258645,0.00028562,2]
[312295963,1705759840663,-500.0,0.00028562,2]
[312295964,1705759840672,-500.0,0.00028562,2]
[312295966,1705759840681,-500.0,0.00028562,2]
[312295968,1705759840690,-500.0,0.00028562,2]
[312295970,1705759840699,-389.39682727,0.00028562,2]
[312295972,1705759840708,-500.0,0.00028562,2]
[312295974,1705759840717,-500.0,0.00028562,2]
[312295976,1705759840726,-500.0,0.00028562,2]
[312295978,1705759840735,-500.0,0.00028562,2]
[312295980,1705759840744,-242.82045951,0.00028562,2]
[312295982,1705759840753,-500.0,0.00028562,2]
[312295984,1705759840762,-500.0,0.00028562,2]
[312295986,1705759840770,-500.0,0.00028562,2]
[312295987,1705759840779,-500.0,0.00028562,2]
[312295989,1705759840788,-500.0,0.00028562,2]
[312295991,1705759840798,-500.0,0.00028562,2]
[312295993,1705759840807,-500.0,0.00028562,2]
[312295995,1705759840815,-500.0,0.00028562,2]
[312295997,1705759840824,-500.0,0.00028562,2]
[312295999,1705759840833,-298.27641561,0.00028562,2]
[312296001,1705759840842,-500.0,0.00028562,2]
[312296003,1705759840851,-500.0,0.00028562,2]
[312296005,1705759840860,-607.88027989,0.00028562,2]
[312296007,1705759840869,-500.0,0.00028562,2]
[312296009,1705759840878,-500.0,0.00028562,2]
[312296011,1705759840887,-500.0,0.00028562,2]
[312296013,1705759840896,-500.0,0.00028562,2]
[312296015,1705759840905,-500.0,0.00028562,2]
[312296017,1705759840914,-500.0,0.00028562,2]
[312296019,1705759840923,-500.0,0.00028562,2]
[312296021,1705759840933,-5000.0,0.00028564,5]
[312296023,1705759840942,-3339.50873871,0.00028564,4]
[312296025,1705759840952,-5000.0,0.00028564,5]
[312296027,1705759840962,-2638.71495489,0.00028564,4]
[312296029,1705759840971,-157.625994,0.00028767,2]
[312296030,1705759840980,-161.667687,0.00028767,2]
[312296032,1705759840989,-316.65982453,0.00028798,2]
[312296034,1705759840998,-1793.13413264,0.00028799,2]
[312296036,1705759841008,-277.47504252,0.00028799,2]
[312296038,1705759841017,-14238.42680306,0.000288,2]
[312296041,1705759841029,-157.04580187,0.00029,10]
[312296043,1705759841043,-154.73694719,0.00029,2]
[312296046,1705759841056,-200.0,0.00029208,15]
[312296048,1705759841071,-200.0,0.00029208,15]
[312296050,1705759841081,-200.0,0.00029208,15]
[312296053,1705759841093,-200.0,0.00029208,15]
[312296055,1705759841106,-275.0,0.00029208,15]
[312296057,1705759841119,-161.667687,0.00029795,2]
[312296060,1705759841133,-5000.0,0.00029863,2]
[312296062,1705759841146,-283.12887752,0.0003,3]
[312296064,1705759841158,-195.24830444,0.0003,4]
[312296067,1705759841169,-154.73694719,0.0003,2]
[312296069,1705759841180,-686.62627649,0.0003,4]
[312296071,1705759841193,-657.10397362,0.0003,3]
[312296073,1705759841205,-1200.0,0.0003,4]
[312296076,1705759841216,-200.0,0.0003,4]
[312296078,1705759841229,-464.45635989,0.0003,2]
[312296081,1705759841242,-283.0,0.0003,2]
[312296083,1705759841255,-155.18124402,0.00030701,7]
[312296085,1705759841266,-161.667687,0.00030822,2]
[312296087,1705759841279,-238.14143998,0.00031,4]
[312296090,1705759841291,-194.74040333,0.00031067,2]
[312296092,1705759841304,-1276.88206339,0.00031167,2]
[312296094,1705759841316,-15028.58085167,0.00031167,2]
[312296096,1705759841327,-842.66088243,0.00031167,2]
[312296098,1705759841339,-330.44770242,0.00031167,2]
[312296100,1705759841351,-785.59006406,0.00031167,2]
[312296101,1705759841364,-161.667687,0.00031849,2]
[312296102,1705759841378,-162.0,0.0003197,30]
[312296104,1705759841391,-186.5,0.0003198,30]
[312296106,1705759841405,-162.0,0.0003198,30]
[312296108,1705759841418,-150.5,0.0003199,30]
[312296109,1705759841428,-162.0,0.0003199,30]
[312296111,1705759841439,-265.2811879,0.00031998,4]
[312296112,1705759841450,-166.55500108,0.00031998,4]
[312296113,1705759841463,-643.9449239,0.00031998,4]
[312296114,1705759841475,-155.3990448,0.00031998,2]
[312296115,1705759841486,-1844.52539602,0.00031999,4]
[312296116,1705759841498,-203.86620558,0.00031999,2]
[312296118,1705759841510,-405.86524898,0.00031999,4]
[312296120,1705759841520,-394.97829414,0.00031999,4]
[312296121,1705759841531,-500.0,0.00031999,4]
[312296122,1705759841543,-547.75148392,0.00031999,4]
[312296123,1705759841555,-500.0,0.00031999,4]
[312296124,1705759841566,-500.0,0.00031999,4]
[312296125,1705759841576,-500.0,0.00031999,4]
[312296126,1705759841588,-587.72145092,0.00031999,4]
[312296128,1705759841600,-306305.11933783,0.00032,4]
[312296129,1705759841616,-10202.84952288,0.00032,4]
[312296131,1705759841631,-25734.27112952,0.00032,4]
[312296133,1705759841642,-12249.29617136,0.00032,5]
[312296134,1705759841654,-154.73694719,0.00032,4]
[312296135,1705759841665,-620.00169004,0.0003201,2]
[312296136,1705759841677,-200.0,0.00032128,15]
[312296137,1705759841687,-200.0,0.00032128,15]
[312296138,1705759841698,-200.0,0.00032128,15]
[312296139,1705759841709,-200.0,0.00032128,15]
[312296140,1705759841720,-200.0,0.00032128,15]
[312296141,1705759841730,-200.0,0.00032128,15]
[312296142,1705759841741,-305.0,0.00032128,15]
[312296143,1705759841752,-1273.92331985,0.00032458,2]
[312296144,1705759841763,-1094.47895322,0.000325,20]
[312296145,1705759841775,-250.0,0.00032876,7]
[312296146,1705759841786,-201.56465925,0.00032876,7]
[312296147,1705759841796,-283.81749499,0.00032876,7]
[312296148,1705759841807,-336.79955187,0.00032876,7]
[312296149,1705759841818,-500.0,0.00032876,7]
[312296150,1705759841829,-500.0,0.00032876,7]
[312296151,1705759841840,-167.04762045,0.00032876,7]
[312296152,1705759841852,-500.0,0.00032876,7]
[312296153,1705759841863,-500.0,0.00032876,7]
[312296154,1705759841874,-500.0,0.00032876,7]
[312296155,1705759841886,-500.0,0.00032876,7]
[312296156,1705759841898,-500.0,0.00032876,7]
[312296157,1705759841909,-500.0,0.00032876,7]
[312296158,1705759841920,-500.0,0.00032876,7]
[312296159,1705759841931,-500.0,0.00032876,7]
[312296160,1705759841942,-271.95710668,0.00032876,7]
[312296161,1705759841956,-228.04289332,0.00032876,7]
[312296162,1705759841967,-500.0,0.00032876,7]
[312296163,1705759841978,-307.11534463,0.00032876,7]
[312296164,1705759841990,-500.0,0.00032876,7]
[312296165,1705759842000,-500.0,0.00032876,7]
[312296166,1705759842012,-500.0,0.00032876,7]
[312296167,1705759842023,-500.0,0.00032876,7]
[312296168,1705759842034,-500.0,0.00032876,7]
[312296169,1705759842045,-205.91020992,0.00032876,7]
[312296170,1705759842057,-473.70731171,0.00032876,7]
[312296171,1705759842069,-500.0,0.00032876,7]
[312296172,1705759842080,-500.0,0.00032876,7]
[312296173,1705759842090,-500.0,0.00032876,7]
[312296174,1705759842102,-500.0,0.00032876,7]
[312296175,1705759842113,-157.625994,0.00032877,2]
[312296176,1705759842124,-170.1137859,0.00032877,2]
[312296177,1705759842135,-161.667687,0.00032877,2]
[312296178,1705759842146,-154.73694719,0.00033,4]
[312296179,1705759842158,-4922.27915475,0.00033,4]
[312296180,1705759842190,-500.0,0.00033,4]
[312296181,1705759842244,-1341.50585259,0.00033,4]
[312296182,1705759842255,-1000.0,0.00033,33]
[312296183,1705759842264,-283.0,0.00033,2]
[312296184,1705759842273,-227.28214938,0.00033399,10]
[312296185,1705759842439,-6168.97467217,0.000334,2]
[312296186,1705759842452,-339.64638281,0.000334,2]
[312296243,1705760751096,-425.80364021,0.00025734,2]
[312296244,1705760751117,-849.96832798,0.00025734,2]
[312296245,1705760751137,-1637.3213979,0.00025734,2]
[312296401,1705761039394,-327.38324213,0.0002363,2]
[312296403,1705761039403,-207.38887039,0.00023631,2]
[312296405,1705761039415,-906.75661136,0.00023631,2]
[312296407,1705761039424,-254.02996633,0.00023632,2]
[312296409,1705761039433,-154.73694719,0.00023632,4]
[312296411,1705761039442,-1197.48170656,0.00023632,2]
[312296413,1705761039452,-261.05411193,0.00023632,2]
[312296415,1705761039461,-226.00094828,0.00023632,2]
[312296418,1705761039481,-3740.8552823,0.00023632,2]
[312296420,1705761039490,-824.03065617,0.00023633,2]
[312296422,1705761039500,-154.73694719,0.00023633,2]
[312296424,1705761039508,-150.0,0.00023634,2]
[312296426,1705761039518,-1570.89243892,0.00024676,2]
[312296428,1705761039527,-166.666666,0.00024683,2]
[312296430,1705761039536,-1045.90652664,0.00025108,2]
[312296432,1705761039545,-4721.06450288,0.00025108,2]
[312296434,1705761039554,-24900.0,0.00025109,2]
[312296436,1705761039563,-166.05116743,0.00025256,2]
[312296438,1705761039572,-166.666666,0.00025355,2]
[312296440,1705761039581,-184.316173,0.00025844,2]
[312296441,1705761039590,-166.666666,0.00026028,2]
[312296442,1705761039599,-5181.4298309,0.00026699,2]
[312296443,1705761039609,-849.96832798,0.000267,2]
[312296444,1705761039618,-166.666666,0.00026701,2]
[312296445,1705761039627,-167.36624,0.00027076,2]
[312296446,1705761039636,-166.666666,0.00027374,2]
[312296447,1705761039645,-194.74040333,0.00028032,2]
[312296448,1705761039654,-166.666666,0.00028047,2]
[312296449,1705761039664,-200.0,0.00028306,15]
[312296450,1705761039674,-1575.79012534,0.00028564,4]
[312296451,1705761039682,-319.04270768,0.00028564,4]
[312296453,1705761039691,-1431.21803088,0.00028564,4]
[312296454,1705761039700,-5000.0,0.00028564,5]
[312296456,1705761039709,-150.0,0.00028634,2]
[312296458,1705761039719,-160.05101,0.00028767,2]
[312296460,1705761039728,-161.667687,0.00028767,2]
[312296461,1705761039737,-155.17008071,0.00029,2]
[312296463,1705761039746,-5000.0,0.00029863,2]
[312296464,1705761039756,-657.10397362,0.0003,3]
[312296466,1705761039765,-189.0,0.0003,2]
[312296468,1705761039775,-568.85396918,0.0003,4]
[312296469,1705761039784,-464.45635989,0.00030059,2]
[312296470,1705761039794,-154.73694719,0.0003006,2]
[312296471,1705761039803,-161.667687,0.00030528,2]
[312296472,1705761039812,-200.0,0.000307,4]
[312296473,1705761039821,-155.18124402,0.00030701,7]
[312296474,1705761039830,-238.14143998,0.00031,4]
[312296475,1705761039839,-280.0,0.00031137,15]
[312296476,1705761039848,-3688.81,0.00031147,3]
[312296477,1705761039858,-5311.89,0.00031157,3]
[312296478,1705761039867,-4426.57,0.00031157,3]
[312296479,1705761039876,-700.0,0.00031167,2]
[312296480,1705761039885,-1000.0,0.00031167,7]
[312296481,1705761039894,-11761.18260556,0.00031167,2]
[312296482,1705761039903,-2205.22173855,0.00031167,2]
[312296483,1705761039912,-4308.45064755,0.00031167,2]
[312296484,1705761039921,-150.54670053,0.00031167,2]
[312296485,1705761039930,-199.78357769,0.00031167,2]
[312296486,1705761039940,-759.9350733,0.00031167,2]
[312296487,1705761039949,-341.12167755,0.00031728,4]
[312296488,1705761039959,-160.05101,0.00031849,2]
[312296489,1705761039971,-162.0,0.0003187,30]
[312296490,1705761039980,-162.0,0.0003188,30]
[312296491,1705761039989,-203.72882391,0.0003188,2]
[312296492,1705761039999,-162.0,0.0003189,30]
[312296493,1705761040009,-160.96626873,0.00031898,4]
[312296494,1705761040018,-1784.47114126,0.00031898,4]
[312296495,1705761040027,-452.57187784,0.00031898,4]
[312296496,1705761040037,-612.62315517,0.00031898,2]
[312296497,1705761040047,-2223.45451338,0.00031898,4]
[312296498,1705761040056,-154.9690062,0.00031898,4]
[312296499,1705761040065,-201.56465925,0.00031899,2]
[312296500,1705761040074,-392.93281052,0.00031899,2]
[312296501,1705761040083,-473.02915832,0.00031899,2]
[312296502,1705761040093,-500.0,0.00031899,2]
[312296503,1705761040102,-500.0,0.00031899,2]
[312296504,1705761040112,-500.0,0.00031899,2]
[312296505,1705761040121,-500.0,0.00031899,2]
[312296506,1705761040130,-167.04762046,0.00031899,2]
[312296507,1705761040139,-422.84613785,0.00031899,2]
[312296508,1705761040149,-500.0,0.00031899,2]
[312296509,1705761040158,-500.0,0.00031899,2]
[312296510,1705761040167,-189.48292468,0.00031899,2]
[312296511,1705761040177,-500.0,0.00031899,2]
[312296512,1705761040186,-500.0,0.00031899,2]
[312296513,1705761040195,-500.0,0.00031899,2]
[312296514,1705761040205,-500.0,0.00031899,2]
[312296515,1705761040214,-191.14692664,0.00031899,2]
[312296516,1705761040223,-500.0,0.00031899,2]
[312296517,1705761040232,-500.0,0.00031899,2]
[312296518,1705761040241,-24243.9276044,0.000319,2]
[312296519,1705761040294,-10202.84952288,0.000319,2]
[312296520,1705761040305,-241553.22287272,0.000319,2]
[312296521,1705761040315,-186.5,0.0003198,30]
[312296522,1705761040324,-150.5,0.0003199,30]
[312296523,1705761040334,-156.56034673,0.00031998,4]
[312296524,1705761040343,-632.182755,0.00031998,2]
[312296525,1705761040352,-2824.94476013,0.00031998,4]
[312296526,1705761040361,-166.55500108,0.00031998,4]
[312296527,1705761040371,-265.2811879,0.00031998,4]
[312296528,1705761040380,-643.9449239,0.00031998,4]
[312296529,1705761040389,-1844.52539602,0.00031998,4]
[312296530,1705761040398,-155.3990448,0.00031998,2]
[312296531,1705761040407,-302.12150469,0.00031999,4]
[312296532,1705761040416,-203.86620558,0.00031999,2]
[312296533,1705761040425,-394.97829414,0.00031999,4]
[312296534,1705761040434,-500.0,0.00031999,4]
[312296535,1705761040444,-405.86524898,0.00031999,4]
[312296536,1705761040453,-547.75148392,0.00031999,4]
[312296537,1705761040462,-587.72145092,0.00031999,4]
[312296538,1705761040471,-500.0,0.00031999,4]
[312296539,1705761040480,-500.0,0.00031999,4]
[312296540,1705761040489,-500.0,0.00031999,4]
[312296541,1705761040499,-278043.86815149,0.00032,4]
[312298246,1705762003089,-154.73694719,0.0002131,2]
[312298247,1705762003109,-157.80019557,0.0002131,2]
[312298267,1705762232676,-2001.92927764,0.00019208,2]
[312298269,1705762232686,-154.73694719,0.00019209,2]
[312298271,1705762232695,-154.73694719,0.00019209,3]
[312298273,1705762232704,-360.75947107,0.0001921,2]
[312298275,1705762232713,-1114.14548175,0.000195,2]
[312298277,1705762232722,-154.73694719,0.0002,2]
[312298279,1705762232731,-849.96832798,0.0002,2]
[312298281,1705762232741,-327.38324213,0.00021,2]
[312298283,1705762232750,-1764.32790583,0.00021,2]
[312298285,1705762232759,-184.316173,0.0002111,2]
[312298287,1705762232768,-5181.4298309,0.00021293,2]
[312298289,1705762232778,-166.666666,0.00021918,2]
[312298290,1705762232787,-293.14605446,0.00022,4]
[312298292,1705762232796,-3966.85623058,0.00022,2]
[312298293,1705762232805,-166.666666,0.00022431,2]
[312298294,1705762232814,-166.666666,0.00022944,2]
[312298295,1705762232824,-160.83305457,0.00023335,2]
[312298296,1705762232833,-470.52459336,0.00023434,2]
[312298297,1705762232842,-2102.56602861,0.00023434,2]
[312298298,1705762232851,-154.73694719,0.00023435,2]
[312298299,1705762232859,-24900.0,0.00023436,2]
[312298300,1705762232868,-200.0,0.00023447,7]
[312298301,1705762232877,-166.666666,0.00023456,2]
[312298302,1705762232886,-166.666666,0.00023969,2]
[312298303,1705762232895,-360.75947107,0.0002421,2]
[312298304,1705762232904,-166.666666,0.00024482,2]
[312298305,1705762232914,-170.091916,0.00024547,2]
[312298306,1705762232922,-498.11936971,0.0002496,5]
[312298307,1705762232932,-1045.90652664,0.00025,2]
[312298308,1705762232941,-280.0,0.00025792,7]
[312298309,1705762232950,-200.64311703,0.000279,2]
[312298310,1705762232958,-200.64311702,0.000279,2]
[312298311,1705762232968,-391.0,0.00028371,15]
[312298312,1705762232977,-7071.56090155,0.00028564,5]
[312298313,1705762232986,-5000.0,0.00028564,5]
[312298314,1705762232995,-889.17151335,0.00028564,4]
[312298315,1705762233003,-5000.0,0.00028564,5]
[312298316,1705762233012,-855.23421656,0.00028564,4]
[312298317,1705762233022,-8016.71,0.00028608,3]
[312298318,1705762233030,-533.70750713,0.00028618,5]
[312298319,1705762233039,-161.667687,0.00028767,2]
[312298320,1705762233048,-159.517034,0.00028767,2]
[312298321,1705762233058,-360.75947107,0.0002921,2]
[312298322,1705762233069,-153.2749664,0.00029315,2]
[312298323,1705762233078,-156.5731179,0.00029315,2]
[312298324,1705762233087,-199.0990555,0.00029315,2]
[312298325,1705762233096,-306.0,0.00029315,2]
[312298326,1705762233106,-308.5597583,0.00029315,2]
[312298327,1705762233115,-170.8109915,0.00029315,2]
[312298328,1705762233125,-199.0990555,0.00029315,2]
[312298329,1705762233134,-153.0,0.00029315,2]
[312298330,1705762233142,-5000.0,0.00029863,2]
[312298331,1705762233150,-150.0,0.00029931,2]
[312298332,1705762233159,-154.73694719,0.0003,2]
[312298333,1705762233168,-657.10397362,0.0003,3]
[312298334,1705762233190,-7541.44034458,0.0003,5]
[312298335,1705762233199,-238.14143998,0.00031,4]
[312298336,1705762233209,-10526.24672796,0.00031,20]
[312298353,1705762238889,-824.03065617,0.000197,2]
[312298354,1705762238899,-1570.89243892,0.00023,2]
[312298355,1705762238908,-6680.6,0.00028598,3]
[312298356,1705762238917,-473.75327204,0.00031,20]
[312298357,1705762238926,-5486.87270113,0.00031167,2]
[312298358,1705762238936,-194.53145822,0.00031167,2]